[Event "*** Titled Tuesday Blitz"]
[Site "Chess.com"]
[Date "2018.08.07"]
[Round "3"]
[White "Vuk2000"]
[Black "Hrant_ChessMood"]
[Result "1/2-1/2"]
[WhiteElo "2684"]
[BlackElo "2995"]
[TimeControl "180+2"]
[EndTime "13:39:51 PDT"]
[Termination "Game drawn - insufficient material"]

1. e4 {[%clk 0:03:01.9]} 1... c5 {[%clk 0:02:57.8]} 2. Nc3 {[%clk 0:03:00]} 2...
Nc6 {[%clk 0:02:57.2]} 3. g3 {[%clk 0:03:00.9]} 3... g6 {[%clk 0:02:52.4]} 4.
Bg2 {[%clk 0:03:01.9]} 4... Bg7 {[%clk 0:02:52.2]} 5. d3 {[%clk 0:03:02.9]} 5...
d6 {[%clk 0:02:50.9]} 6. Be3 {[%clk 0:03:03.3]} 6... h5 {[%clk 0:02:48.6]} 7. h3
{[%clk 0:03:03.6]} 7... Nf6 {[%clk 0:02:40.9]} 8. Qd2 {[%clk 0:02:54.5]} 8...
Nd7 {[%clk 0:02:38.3]} 9. a3 {[%clk 0:02:37.2]} 9... Nf8 {[%clk 0:02:38]} 10.
Nd1 {[%clk 0:02:25]} 10... Ne6 {[%clk 0:02:35.9]} 11. c3 {[%clk 0:02:25]} 11...
Bd7 {[%clk 0:02:23.6]} 12. Ne2 {[%clk 0:02:16.5]} 12... Qb6 {[%clk 0:02:10.4]}
13. b4 {[%clk 0:02:01.9]} 13... Qc7 {[%clk 0:02:07.4]} 14. Rb1 {[%clk
0:01:48.4]} 14... O-O {[%clk 0:01:57]} 15. O-O {[%clk 0:01:42.1]} 15... cxb4
{[%clk 0:01:13.1]} 16. axb4 {[%clk 0:01:41.2]} 16... a5 {[%clk 0:01:14.1]} 17.
bxa5 {[%clk 0:01:31]} 17... Nxa5 {[%clk 0:01:12]} 18. Bh6 {[%clk 0:01:04]} 18...
Rfc8 {[%clk 0:01:03.5]} 19. Bxg7 {[%clk 0:01:03.3]} 19... Nxg7 {[%clk
0:01:04.1]} 20. f4 {[%clk 0:00:59.8]} 20... Nc6 {[%clk 0:00:58]} 21. Ne3 {[%clk
0:00:57.6]} 21... e6 {[%clk 0:00:53.7]} 22. f5 {[%clk 0:00:54.8]} 22... Ne5
{[%clk 0:00:52.6]} 23. d4 {[%clk 0:00:47.7]} 23... Nc4 {[%clk 0:00:53.3]} 24.
Nxc4 {[%clk 0:00:48.7]} 24... Qxc4 {[%clk 0:00:55.2]} 25. fxg6 {[%clk
0:00:44.6]} 25... fxg6 {[%clk 0:00:53.5]} 26. Rxb7 {[%clk 0:00:44.9]} 26... Ra2
{[%clk 0:00:52]} 27. Rb2 {[%clk 0:00:38.4]} 27... Rca8 {[%clk 0:00:50.6]} 28.
Nf4 {[%clk 0:00:27]} 28... Rxb2 {[%clk 0:00:40.4]} 29. Qxb2 {[%clk 0:00:28.9]}
29... Ra2 {[%clk 0:00:37.6]} 30. Qb8+ {[%clk 0:00:26.6]} 30... Kh7 {[%clk
0:00:38.9]} 31. Qf8 {[%clk 0:00:16.6]} 31... Qxc3 {[%clk 0:00:29.6]} 32. Rf3
{[%clk 0:00:12.9]} 32... Qxd4+ {[%clk 0:00:29.3]} 33. Kh2 {[%clk 0:00:14.3]}
33... Ra1 {[%clk 0:00:30.6]} 34. Ne2 {[%clk 0:00:14.8]} 34... Qe5 {[%clk
0:00:25.5]} 35. Qf7 {[%clk 0:00:09.5]} 35... Be8 {[%clk 0:00:24.9]} 36. Qf6
{[%clk 0:00:09.6]} 36... Ra2 {[%clk 0:00:18]} 37. Nd4 {[%clk 0:00:07.9]} 37...
Qxf6 {[%clk 0:00:07.2]} 38. Rxf6 {[%clk 0:00:09.8]} 38... e5 {[%clk 0:00:07.4]}
39. Nf3 {[%clk 0:00:08.1]} 39... Bb5 {[%clk 0:00:08.4]} 40. Ng5+ {[%clk
0:00:08.7]} 40... Kg8 {[%clk 0:00:09.6]} 41. Rxd6 {[%clk 0:00:09.6]} 41... Ne8
{[%clk 0:00:10.7]} 42. Rxg6+ {[%clk 0:00:09.9]} 42... Kf8 {[%clk 0:00:10.6]} 43.
Kg1 {[%clk 0:00:11.2]} 43... Ra1+ {[%clk 0:00:11.2]} 44. Kf2 {[%clk 0:00:12.5]}
44... Ra2+ {[%clk 0:00:13.1]} 45. Kg1 {[%clk 0:00:13.9]} 45... Ra1+ {[%clk
0:00:13.8]} 46. Kf2 {[%clk 0:00:13.4]} 46... Ra2+ {[%clk 0:00:15]} 47. Kg1
{[%clk 0:00:08.3]} 47... Bc4 {[%clk 0:00:16.9]} 48. Nf3 {[%clk 0:00:06.8]} 48...
Ra1+ {[%clk 0:00:13.8]} 49. Kh2 {[%clk 0:00:07.7]} 49... Ra2 {[%clk 0:00:15]}
50. Kg1 {[%clk 0:00:09.2]} 50... Ra1+ {[%clk 0:00:16.2]} 51. Kh2 {[%clk
0:00:10.4]} 51... Ra2 {[%clk 0:00:17.3]} 52. Nh4 {[%clk 0:00:11.7]} 52... Ke7
{[%clk 0:00:13.9]} 53. Rg5 {[%clk 0:00:12.6]} 53... Kd6 {[%clk 0:00:12.7]} 54.
Nf5+ {[%clk 0:00:11.9]} 54... Kc5 {[%clk 0:00:12.9]} 55. Ne3 {[%clk 0:00:12.8]}
55... Nd6 {[%clk 0:00:09.5]} 56. Rxe5+ {[%clk 0:00:11.5]} 56... Kd4 {[%clk
0:00:10.4]} 57. Nxc4 {[%clk 0:00:09.8]} 57... Nxc4 {[%clk 0:00:12.3]} 58. Rd5+
{[%clk 0:00:11.2]} 58... Kc3 {[%clk 0:00:13.3]} 59. Rc5 {[%clk 0:00:09.7]} 59...
Kd4 {[%clk 0:00:14.1]} 60. Rd5+ {[%clk 0:00:10.5]} 60... Kc3 {[%clk 0:00:15.4]}
61. Rd1 {[%clk 0:00:06.4]} 61... Ne3 {[%clk 0:00:12]} 62. Rg1 {[%clk 0:00:07.2]}
62... Kd4 {[%clk 0:00:13.4]} 63. Kh1 {[%clk 0:00:08.1]} 63... Rf2 {[%clk
0:00:10.9]} 64. h4 {[%clk 0:00:05.6]} 64... Ke5 {[%clk 0:00:11.4]} 65. Bh3
{[%clk 0:00:06]} 65... Kxe4 {[%clk 0:00:11.1]} 66. Bg2+ {[%clk 0:00:07]} 66...
Kd4 {[%clk 0:00:10.2]} 67. Bh3 {[%clk 0:00:07.8]} 67... Kd3 {[%clk 0:00:10.9]}
68. g4 {[%clk 0:00:05.2]} 68... Rf3 {[%clk 0:00:08.2]} 69. Kh2 {[%clk
0:00:04.7]} 69... hxg4 {[%clk 0:00:02.7]} 70. Bxg4 {[%clk 0:00:06.6]} 70... Rf4
{[%clk 0:00:03.6]} 71. Kh3 {[%clk 0:00:08]} 71... Ke4 {[%clk 0:00:04.7]} 72. Be2
{[%clk 0:00:08]} 72... Rf2 {[%clk 0:00:05.2]} 73. Bh5 {[%clk 0:00:08.3]} 73...
Nd5 {[%clk 0:00:05.8]} 74. Bg6+ {[%clk 0:00:08]} 74... Ke5 {[%clk 0:00:06.3]}
75. h5 {[%clk 0:00:08.4]} 75... Kf6 {[%clk 0:00:05.1]} 76. Kg3 {[%clk
0:00:08.6]} 76... Ra2 {[%clk 0:00:05.5]} 77. Rf1+ {[%clk 0:00:08.8]} 77... Kg7
{[%clk 0:00:06.8]} 78. Rf7+ {[%clk 0:00:09.5]} 78... Kh6 {[%clk 0:00:08.2]} 79.
Kg4 {[%clk 0:00:05.4]} 79... Ra4+ {[%clk 0:00:08.7]} 80. Kg3 {[%clk 0:00:05.6]}
80... Ra3+ {[%clk 0:00:06.5]} 81. Rf3 {[%clk 0:00:06]} 81... Ra5 {[%clk
0:00:06.5]} 82. Rf5 {[%clk 0:00:06.6]} 82... Ra3+ {[%clk 0:00:07.2]} 83. Rf3
{[%clk 0:00:07.9]} 83... Ra4 {[%clk 0:00:08.1]} 84. Rd3 {[%clk 0:00:07.7]} 84...
Nf4 {[%clk 0:00:08.7]} 85. Rb3 {[%clk 0:00:08.5]} 85... Ne2+ {[%clk 0:00:06.6]}
86. Kh3 {[%clk 0:00:08]} 86... Nd4 {[%clk 0:00:07.3]} 87. Rd3 {[%clk 0:00:08.8]}
87... Kg5 {[%clk 0:00:07.7]} 88. Re3 {[%clk 0:00:09.2]} 88... Ra1 {[%clk
0:00:05]} 89. Rg3+ {[%clk 0:00:09.1]} 89... Kh6 {[%clk 0:00:06]} 90. Re3 {[%clk
0:00:09.8]} 90... Rg1 {[%clk 0:00:05.4]} 91. Kh2 {[%clk 0:00:10.6]} 91... Rg5
{[%clk 0:00:05.8]} 92. Kh3 {[%clk 0:00:11.6]} 92... Rg1 {[%clk 0:00:06.6]} 93.
Kh2 {[%clk 0:00:12.4]} 93... Rf1 {[%clk 0:00:07.9]} 94. Kg2 {[%clk 0:00:13.5]}
94... Rf8 {[%clk 0:00:09]} 95. Re4 {[%clk 0:00:14.7]} 95... Nf3 {[%clk
0:00:09.1]} 96. Re3 {[%clk 0:00:15.7]} 96... Ng5 {[%clk 0:00:09.3]} 97. Kg3
{[%clk 0:00:16.7]} 97... Rf6 {[%clk 0:00:09.9]} 98. Rb3 {[%clk 0:00:14.3]} 98...
Ne6 {[%clk 0:00:11.1]} 99. Rb6 {[%clk 0:00:12.2]} 99... Kg5 {[%clk 0:00:11.8]}
100. Rb5+ {[%clk 0:00:12.4]} 100... Kh6 {[%clk 0:00:12.8]} 101. Rb6 {[%clk
0:00:13.6]} 101... Kg5 {[%clk 0:00:14]} 102. Bb1 {[%clk 0:00:11.5]} 102... Kxh5
{[%clk 0:00:09.3]} 103. Ba2 {[%clk 0:00:11.6]} 103... Rg6+ {[%clk 0:00:10.5]}
104. Kf2 {[%clk 0:00:12.1]} 104... Ng5 {[%clk 0:00:06.3]} 105. Rxg6 {[%clk
0:00:11.8]} 105... Kxg6 {[%clk 0:00:08.2]} 106. Bb1+ {[%clk 0:00:13.4]} 106...
Ne4+ {[%clk 0:00:10.1]} 107. Bxe4+ {[%clk 0:00:13.9]} 1/2-1/2

[Event "*** Titled Tuesday Blitz"]
[Site "Chess.com"]
[Date "2018.08.07"]
[Round "4"]
[White "narutosmith"]
[Black "fidetrainerNET"]
[Result "1-0"]
[WhiteElo "2105"]
[BlackElo "1916"]
[TimeControl "180+2"]
[EndTime "13:42:12 PDT"]
[Termination "narutosmith won by resignation"]

1. e4 {[%clk 0:02:59.7]} 1... c5 {[%clk 0:03:01.3]} 2. Nc3 {[%clk 0:03:00.3]}
2... Nc6 {[%clk 0:02:59.3]} 3. Nf3 {[%clk 0:03:01.3]} 3... g6 {[%clk 0:03:00.1]}
4. d4 {[%clk 0:03:02.2]} 4... cxd4 {[%clk 0:03:01.4]} 5. Nxd4 {[%clk 0:03:03.7]}
5... Bg7 {[%clk 0:03:02.7]} 6. Be3 {[%clk 0:03:05.3]} 6... d6 {[%clk 0:03:03.7]}
7. Qd2 {[%clk 0:03:05.3]} 7... Nf6 {[%clk 0:03:04.3]} 8. f3 {[%clk 0:03:05.6]}
8... O-O {[%clk 0:03:04.8]} 9. O-O-O {[%clk 0:03:07]} 9... d5 {[%clk 0:03:05.6]}
10. Kb1 {[%clk 0:03:07.9]} 10... dxe4 {[%clk 0:03:05.2]} 11. Nxc6 {[%clk
0:03:06.7]} 11... Qxd2 {[%clk 0:03:05.3]} 12. Nxe7+ {[%clk 0:03:04.8]} 12... Kh8
{[%clk 0:03:05.9]} 13. Rxd2 {[%clk 0:03:03.5]} 13... exf3 {[%clk 0:03:05.1]} 14.
Nxc8 {[%clk 0:03:01.5]} 14... fxg2 {[%clk 0:03:04]} 15. Bxg2 {[%clk 0:03:01.3]}
15... Raxc8 {[%clk 0:03:04.7]} 16. Bxb7 {[%clk 0:02:54.9]} 16... Rb8 {[%clk
0:03:05.3]} 17. Bf3 {[%clk 0:02:52.2]} 17... Rfe8 {[%clk 0:03:02.7]} 18. Bd4
{[%clk 0:02:51]} 18... h5 {[%clk 0:03:00.6]} 19. Rf1 {[%clk 0:02:46.6]} 19...
Ng4 {[%clk 0:02:58.3]} 20. Bxg4 {[%clk 0:02:37.2]} 1-0

[Event "*** Titled Tuesday Blitz"]
[Site "Chess.com"]
[Date "2018.08.07"]
[Round "4"]
[White "Aleksey_Sorokin"]
[Black "LucaBrasi1968"]
[Result "1-0"]
[WhiteElo "2728"]
[BlackElo "2471"]
[TimeControl "180+2"]
[EndTime "13:44:35 PDT"]
[Termination "Aleksey_Sorokin won by resignation"]

1. d4 {[%clk 0:02:58.9]} 1... f5 {[%clk 0:02:56.9]} 2. Nf3 {[%clk 0:02:58.8]}
2... Nf6 {[%clk 0:02:57]} 3. g3 {[%clk 0:03:00.5]} 3... e6 {[%clk 0:02:57.6]} 4.
Bg2 {[%clk 0:03:02.4]} 4... d5 {[%clk 0:02:58.8]} 5. O-O {[%clk 0:03:04.3]} 5...
Bd6 {[%clk 0:02:59.9]} 6. c4 {[%clk 0:03:06.2]} 6... c6 {[%clk 0:03:00.6]} 7.
Nc3 {[%clk 0:03:08.1]} 7... O-O {[%clk 0:03:00.9]} 8. Qc2 {[%clk 0:03:09.8]}
8... Ne4 {[%clk 0:02:55.2]} 9. Rb1 {[%clk 0:03:10.8]} 9... Nd7 {[%clk
0:02:55.5]} 10. b4 {[%clk 0:03:10.3]} 10... Ndf6 {[%clk 0:02:55.4]} 11. b5
{[%clk 0:03:09.9]} 11... Bd7 {[%clk 0:02:56.2]} 12. bxc6 {[%clk 0:03:10]} 12...
Bxc6 {[%clk 0:02:54.4]} 13. c5 {[%clk 0:03:10.9]} 13... Bc7 {[%clk 0:02:52.2]}
14. Bf4 {[%clk 0:03:09.8]} 14... Bxf4 {[%clk 0:02:43.4]} 15. gxf4 {[%clk
0:03:10.1]} 15... Nxc3 {[%clk 0:02:42.9]} 16. Qxc3 {[%clk 0:03:10.6]} 16... Ne4
{[%clk 0:02:43.6]} 17. Qb2 {[%clk 0:03:10.1]} 17... Kh8 {[%clk 0:02:31.6]} 18.
Ne5 {[%clk 0:03:07.8]} 18... g5 {[%clk 0:02:30.6]} 19. f3 {[%clk 0:03:07.9]}
19... gxf4 {[%clk 0:02:13.3]} 20. fxe4 {[%clk 0:03:08.3]} 20... fxe4 {[%clk
0:02:14.5]} 21. Kh1 {[%clk 0:03:09.6]} 21... Qh4 {[%clk 0:01:48.1]} 22. Bxe4
{[%clk 0:03:04.8]} 22... dxe4 {[%clk 0:01:46.3]} 23. d5 {[%clk 0:03:04.8]} 23...
Rf6 {[%clk 0:00:39.6]} 24. dxc6 {[%clk 0:03:04.1]} 24... bxc6 {[%clk 0:00:40.1]}
25. Ng4 {[%clk 0:03:01.9]} 1-0

[Event "*** Titled Tuesday Blitz"]
[Site "Chess.com"]
[Date "2018.08.07"]
[Round "4"]
[White "TijanaBlagojevic"]
[Black "pultineviciuspaulius"]
[Result "0-1"]
[WhiteElo "2346"]
[BlackElo "2563"]
[TimeControl "180+2"]
[EndTime "13:45:04 PDT"]
[Termination "pultineviciuspaulius won by resignation"]

1. e4 {[%clk 0:03:01.9]} 1... c6 {[%clk 0:03:01.9]} 2. d4 {[%clk 0:03:02.4]}
2... d5 {[%clk 0:03:03.2]} 3. e5 {[%clk 0:03:04]} 3... Bf5 {[%clk 0:03:04.3]} 4.
h4 {[%clk 0:03:05.5]} 4... h6 {[%clk 0:03:04.5]} 5. h5 {[%clk 0:03:05.6]} 5...
e6 {[%clk 0:03:05.3]} 6. Ne2 {[%clk 0:03:05]} 6... c5 {[%clk 0:03:03.8]} 7. c3
{[%clk 0:03:05.2]} 7... Nc6 {[%clk 0:03:04.3]} 8. Ng3 {[%clk 0:03:06]} 8... Nge7
{[%clk 0:03:03.8]} 9. Nxf5 {[%clk 0:02:58.5]} 9... Nxf5 {[%clk 0:03:05.7]} 10.
g4 {[%clk 0:03:00.1]} 10... Nfe7 {[%clk 0:03:04.3]} 11. Nd2 {[%clk 0:02:56.6]}
11... cxd4 {[%clk 0:03:03.4]} 12. cxd4 {[%clk 0:02:58.5]} 12... Nxd4 {[%clk
0:03:04.8]} 13. Qa4+ {[%clk 0:02:56.2]} 13... Nec6 {[%clk 0:03:01.5]} 14. Nb3
{[%clk 0:02:49.3]} 14... Nc2+ {[%clk 0:03:02]} 15. Kd1 {[%clk 0:02:48.7]} 15...
Nxa1 {[%clk 0:03:03.9]} 16. Nxa1 {[%clk 0:02:49.4]} 16... Qb6 {[%clk 0:03:04.1]}
17. Bb5 {[%clk 0:02:45.8]} 17... Rc8 {[%clk 0:03:01.7]} 18. Be3 {[%clk
0:02:45.9]} 18... Bc5 {[%clk 0:03:00.7]} 19. Nc2 {[%clk 0:02:31.2]} 19... O-O
{[%clk 0:02:59.2]} 20. g5 {[%clk 0:02:30.4]} 20... Bxe3 {[%clk 0:02:57.7]} 21.
Nxe3 {[%clk 0:02:27.5]} 21... Qd4+ {[%clk 0:02:58]} 22. Qxd4 {[%clk 0:02:23.9]}
22... Nxd4 {[%clk 0:02:59.9]} 23. Bd3 {[%clk 0:02:25.4]} 23... hxg5 {[%clk
0:03:00.8]} 24. h6 {[%clk 0:02:25.8]} 24... g6 {[%clk 0:03:02.2]} 25. Ng4 {[%clk
0:02:26.5]} 25... Nf5 {[%clk 0:03:01.3]} 26. Nf6+ {[%clk 0:02:27.3]} 26... Kh8
{[%clk 0:03:02.5]} 27. h7 {[%clk 0:02:28.2]} 27... d4 {[%clk 0:03:03.3]} 28. Kd2
{[%clk 0:02:18.9]} 28... Rc5 {[%clk 0:03:04.3]} 29. Nd7 {[%clk 0:02:17.3]} 29...
Rfc8 {[%clk 0:03:05]} 30. Nxc5 {[%clk 0:02:17.3]} 30... Rxc5 {[%clk 0:03:06.9]}
31. Re1 {[%clk 0:02:15.9]} 31... Kxh7 {[%clk 0:03:07]} 32. Rh1+ {[%clk
0:02:14.9]} 32... Kg7 {[%clk 0:03:08.2]} 33. Re1 {[%clk 0:02:16.8]} 33... Ne7
{[%clk 0:03:08]} 34. Re4 {[%clk 0:02:17.2]} 34... Nc6 {[%clk 0:03:08.5]} 35. b4
{[%clk 0:02:13.1]} 35... Rxe5 {[%clk 0:03:09.2]} 36. b5 {[%clk 0:02:10.5]} 36...
Rxe4 {[%clk 0:02:56.5]} 37. Bxe4 {[%clk 0:02:12.4]} 37... Na5 {[%clk 0:02:52.4]}
38. Kd3 {[%clk 0:02:13.6]} 38... e5 {[%clk 0:02:51.2]} 39. a4 {[%clk 0:02:13.5]}
39... f5 {[%clk 0:02:51.4]} 40. Bd5 {[%clk 0:02:14.7]} 40... Kf6 {[%clk
0:02:51.7]} 41. f3 {[%clk 0:02:15.6]} 41... Ke7 {[%clk 0:02:49.2]} 42. Ba2
{[%clk 0:02:14.5]} 42... Kf6 {[%clk 0:02:47.8]} 43. Bd5 {[%clk 0:02:15.2]} 43...
g4 {[%clk 0:02:47.1]} 44. fxg4 {[%clk 0:02:14.6]} 44... fxg4 {[%clk 0:02:49]}
45. Ke4 {[%clk 0:02:15.9]} 45... g3 {[%clk 0:02:50.5]} 46. Kf3 {[%clk
0:02:17.1]} 46... d3 {[%clk 0:02:52]} 47. Kxg3 {[%clk 0:02:16.6]} 47... d2
{[%clk 0:02:53.2]} 48. Bf3 {[%clk 0:02:18]} 48... e4 {[%clk 0:02:54.7]} 49. Be2
{[%clk 0:02:17.2]} 49... Ke5 {[%clk 0:02:55.5]} 50. Kf2 {[%clk 0:02:18.4]} 50...
Kd4 {[%clk 0:02:56.4]} 51. Bg4 {[%clk 0:02:17.4]} 51... e3+ {[%clk 0:02:58.3]}
52. Ke2 {[%clk 0:02:17.9]} 52... Nc4 {[%clk 0:03:00.2]} 53. Kd1 {[%clk
0:02:18.3]} 53... Nb2+ {[%clk 0:03:02.1]} 54. Kc2 {[%clk 0:02:19.5]} 54... d1=Q+
{[%clk 0:03:03.6]} 55. Bxd1 {[%clk 0:02:20.2]} 55... Nxd1 {[%clk 0:03:05.5]} 56.
Kxd1 {[%clk 0:02:22]} 56... a5 {[%clk 0:03:06.8]} 57. Ke2 {[%clk 0:02:23.1]}
57... b6 {[%clk 0:03:08.2]} 58. Kf3 {[%clk 0:02:24.1]} 58... Kd3 {[%clk
0:03:09.3]} 0-1

[Event "*** Titled Tuesday Blitz"]
[Site "Chess.com"]
[Date "2018.08.07"]
[Round "4"]
[White "CookiesAndIceCream"]
[Black "VeraNebolsina"]
[Result "1-0"]
[WhiteElo "2261"]
[BlackElo "2397"]
[TimeControl "180+2"]
[EndTime "13:45:09 PDT"]
[Termination "CookiesAndIceCream won by resignation"]

1. e4 {[%clk 0:03:01.9]} 1... c5 {[%clk 0:02:58.4]} 2. Nf3 {[%clk 0:03:03.1]}
2... d6 {[%clk 0:02:58.9]} 3. d4 {[%clk 0:03:04.6]} 3... cxd4 {[%clk 0:02:59.6]}
4. Nxd4 {[%clk 0:03:06.5]} 4... Nf6 {[%clk 0:03:00.6]} 5. Nc3 {[%clk 0:03:08.1]}
5... a6 {[%clk 0:02:58.3]} 6. Be3 {[%clk 0:03:09.5]} 6... e5 {[%clk 0:02:58.4]}
7. Nb3 {[%clk 0:03:10.7]} 7... Be7 {[%clk 0:02:58.7]} 8. f3 {[%clk 0:03:12.2]}
8... Be6 {[%clk 0:02:56.3]} 9. Qd2 {[%clk 0:03:13.4]} 9... Nbd7 {[%clk
0:02:57.5]} 10. O-O-O {[%clk 0:03:14.2]} 10... O-O {[%clk 0:02:54.8]} 11. g4
{[%clk 0:03:15.1]} 11... b5 {[%clk 0:02:55.8]} 12. Rg1 {[%clk 0:03:16]} 12... b4
{[%clk 0:02:55.1]} 13. Nd5 {[%clk 0:03:17.3]} 13... Bxd5 {[%clk 0:02:52.9]} 14.
exd5 {[%clk 0:03:19.2]} 14... a5 {[%clk 0:02:53]} 15. g5 {[%clk 0:03:19.5]}
15... Nh5 {[%clk 0:02:52.5]} 16. Kb1 {[%clk 0:03:20.9]} 16... a4 {[%clk
0:02:51.2]} 17. Nc1 {[%clk 0:03:22.4]} 17... b3 {[%clk 0:02:11.4]} 18. cxb3
{[%clk 0:03:10.3]} 18... axb3 {[%clk 0:02:12.1]} 19. Nxb3 {[%clk 0:03:11.4]}
19... Nb6 {[%clk 0:01:51]} 20. Rg4 {[%clk 0:03:06]} 20... Nf4 {[%clk 0:01:40.5]}
21. Bxf4 {[%clk 0:03:02.2]} 21... exf4 {[%clk 0:01:40.9]} 22. h4 {[%clk
0:03:01.1]} 22... Qd7 {[%clk 0:01:39.9]} 23. Rxf4 {[%clk 0:03:01]} 23... Ra4
{[%clk 0:01:35.3]} 24. Rxa4 {[%clk 0:02:40]} 24... Qxa4 {[%clk 0:01:35.9]} 25.
Qd4 {[%clk 0:02:32.8]} 25... Qa7 {[%clk 0:01:36.5]} 26. Bb5 {[%clk 0:02:05.2]}
26... Ra8 {[%clk 0:01:35.1]} 27. a3 {[%clk 0:02:06.2]} 27... Qb7 {[%clk
0:01:28.8]} 28. Bc6 {[%clk 0:02:05.3]} 28... Qc8 {[%clk 0:01:28.6]} 29. Bxa8
{[%clk 0:02:05.9]} 29... Nxa8 {[%clk 0:01:27.7]} 30. Rc1 {[%clk 0:02:03.2]}
30... Qf5+ {[%clk 0:01:28.2]} 31. Qe4 {[%clk 0:02:04.6]} 1-0

[Event "*** Titled Tuesday Blitz"]
[Site "Chess.com"]
[Date "2018.08.07"]
[Round "4"]
[White "Drags95"]
[Black "GM_dmitrij"]
[Result "0-1"]
[WhiteElo "2611"]
[BlackElo "2704"]
[TimeControl "180+2"]
[EndTime "13:45:22 PDT"]
[Termination "GM_dmitrij won by resignation"]

1. e4 {[%clk 0:03:01.9]} 1... e5 {[%clk 0:02:59.7]} 2. Nf3 {[%clk 0:03:03]} 2...
Nc6 {[%clk 0:03:00.8]} 3. Bb5 {[%clk 0:03:04]} 3... a6 {[%clk 0:03:01.8]} 4. Ba4
{[%clk 0:03:05.6]} 4... g6 {[%clk 0:03:02.2]} 5. d4 {[%clk 0:02:51.1]} 5... exd4
{[%clk 0:03:02.6]} 6. Nxd4 {[%clk 0:02:50.1]} 6... Bg7 {[%clk 0:03:02.4]} 7.
Nxc6 {[%clk 0:02:50.8]} 7... bxc6 {[%clk 0:03:03.4]} 8. Bb3 {[%clk 0:02:49.7]}
8... Nf6 {[%clk 0:03:00.3]} 9. Nc3 {[%clk 0:02:50.7]} 9... O-O {[%clk
0:03:00.2]} 10. O-O {[%clk 0:02:52.2]} 10... Re8 {[%clk 0:02:56.1]} 11. Re1
{[%clk 0:02:51.7]} 11... d5 {[%clk 0:02:49.2]} 12. exd5 {[%clk 0:01:48.2]} 12...
Rxe1+ {[%clk 0:02:48.7]} 13. Qxe1 {[%clk 0:01:50.1]} 13... cxd5 {[%clk
0:02:46.2]} 14. Bf4 {[%clk 0:01:50.2]} 14... Be6 {[%clk 0:02:23.2]} 15. Rd1
{[%clk 0:01:42]} 15... c5 {[%clk 0:02:24]} 16. Bg5 {[%clk 0:01:30.5]} 16... h6
{[%clk 0:02:02.9]} 17. Bxf6 {[%clk 0:01:19.4]} 17... Qxf6 {[%clk 0:02:04.8]} 18.
Bxd5 {[%clk 0:01:20.3]} 18... Bxd5 {[%clk 0:01:53.8]} 19. Rxd5 {[%clk
0:01:21.3]} 19... Rb8 {[%clk 0:01:55]} 20. Na4 {[%clk 0:01:20.2]} 20... Qc6
{[%clk 0:01:42.6]} 21. Qe4 {[%clk 0:01:12.8]} 21... Re8 {[%clk 0:01:41.7]} 0-1

[Event "*** Titled Tuesday Blitz"]
[Site "Chess.com"]
[Date "2018.08.07"]
[Round "4"]
[White "Er_is_geen_hoop_meer"]
[Black "b_6"]
[Result "1-0"]
[WhiteElo "2454"]
[BlackElo "2378"]
[TimeControl "180+2"]
[EndTime "13:45:47 PDT"]
[Termination "Er_is_geen_hoop_meer won by checkmate"]

1. b4 {[%clk 0:03:01.9]} 1... d5 {[%clk 0:02:58.3]} 2. Bb2 {[%clk 0:03:02.2]}
2... Nf6 {[%clk 0:02:57.9]} 3. e3 {[%clk 0:03:02.9]} 3... Bf5 {[%clk 0:02:58.2]}
4. Be2 {[%clk 0:03:02.3]} 4... e6 {[%clk 0:02:57.7]} 5. a3 {[%clk 0:03:03.8]}
5... Nbd7 {[%clk 0:02:55]} 6. g4 {[%clk 0:03:04.9]} 6... Bg6 {[%clk 0:02:52.7]}
7. h4 {[%clk 0:03:06.1]} 7... h5 {[%clk 0:02:46.6]} 8. g5 {[%clk 0:03:06.8]}
8... Ng8 {[%clk 0:02:45.2]} 9. Nh3 {[%clk 0:03:07.9]} 9... e5 {[%clk 0:02:15.8]}
10. c4 {[%clk 0:03:08]} 10... c6 {[%clk 0:02:08.3]} 11. Qb3 {[%clk 0:03:09.1]}
11... Ne7 {[%clk 0:01:57]} 12. Nc3 {[%clk 0:03:08.7]} 12... d4 {[%clk
0:01:48.8]} 13. Na4 {[%clk 0:03:09.7]} 13... Nf5 {[%clk 0:01:24.3]} 14. c5
{[%clk 0:03:07.7]} 14... Be7 {[%clk 0:01:01.2]} 15. f4 {[%clk 0:03:07.5]} 15...
Nxh4 {[%clk 0:00:48.2]} 16. O-O-O {[%clk 0:03:05.3]} 16... O-O {[%clk
0:00:36.6]} 17. fxe5 {[%clk 0:03:05.6]} 17... Nxe5 {[%clk 0:00:33.5]} 18. Bxd4
{[%clk 0:03:06.9]} 18... Nhf3 {[%clk 0:00:33.1]} 19. Bb2 {[%clk 0:03:03.3]}
19... Be4 {[%clk 0:00:28.7]} 20. d3 {[%clk 0:03:02]} 20... Bd5 {[%clk
0:00:29.5]} 21. Qc3 {[%clk 0:02:58.2]} 21... f6 {[%clk 0:00:17.3]} 22. Nf4
{[%clk 0:02:56.4]} 22... fxg5 {[%clk 0:00:10.9]} 23. Bxf3 {[%clk 0:02:55.1]}
23... Bxf3 {[%clk 0:00:10.6]} 24. Qxe5 {[%clk 0:02:55.8]} 24... Bf6 {[%clk
0:00:10.8]} 25. Qe6+ {[%clk 0:02:57.2]} 25... Kh7 {[%clk 0:00:12]} 26. Nxh5
{[%clk 0:02:52.5]} 26... Bxh1 {[%clk 0:00:10.4]} 27. Rxh1 {[%clk 0:02:51.1]}
27... Kg6 {[%clk 0:00:11.7]} 28. Bxf6 {[%clk 0:02:48.5]} 28... gxf6 {[%clk
0:00:10.5]} 29. Nf4+ {[%clk 0:02:49.7]} 29... Kg7 {[%clk 0:00:07.7]} 30. Nh5+
{[%clk 0:02:46.7]} 30... Kg6 {[%clk 0:00:08.8]} 31. Qe4+ {[%clk 0:02:47.3]}
31... f5 {[%clk 0:00:08.4]} 32. Qe6+ {[%clk 0:02:48.3]} 32... Kh7 {[%clk
0:00:07.1]} 33. Nf6+ {[%clk 0:02:48.2]} 33... Kg7 {[%clk 0:00:08.2]} 34. Nh5+
{[%clk 0:02:46]} 34... Kh7 {[%clk 0:00:09.1]} 35. Nf4+ {[%clk 0:02:46.5]} 35...
Kg7 {[%clk 0:00:07.1]} 36. Qg6# {[%clk 0:02:48.4]} 1-0